[Event "*** SCC Grand Prix: Titled Tuesday Blitz"]
[Site "Chess.com"]
[Date "2020.06.09"]
[Round "3"]
[White "Khvicha_Supatashvili"]
[Black "IljaJoke"]
[Result "1-0"]
[WhiteElo "2716"]
[BlackElo "2486"]
[TimeControl "180+1"]
[EndTime "9:29:35 PDT"]
[Termination "Khvicha_Supatashvili won by resignation"]

1. d4 {[%clk 0:03:00.9]} 1... Nf6 {[%clk 0:02:58.7]} 2. c4 {[%clk 0:03:00.4]}
2... c5 {[%clk 0:02:59.3]} 3. d5 {[%clk 0:02:59.9]} 3... g6 {[%clk 0:02:59.9]}
4. Nc3 {[%clk 0:02:59.6]} 4... Bg7 {[%clk 0:03:00.3]} 5. e4 {[%clk 0:03:00]}
5... d6 {[%clk 0:03:00.4]} 6. Nf3 {[%clk 0:03:00]} 6... O-O {[%clk 0:03:00.6]}
7. h3 {[%clk 0:03:00.2]} 7... e6 {[%clk 0:02:59.9]} 8. Bd3 {[%clk 0:03:00.2]}
8... Nbd7 {[%clk 0:02:59.1]} 9. O-O {[%clk 0:02:58.5]} 9... e5 {[%clk
0:02:59.4]} 10. a3 {[%clk 0:02:49.1]} 10... h6 {[%clk 0:02:58.7]} 11. b4 {[%clk
0:02:48.7]} 11... Nh7 {[%clk 0:02:59.3]} 12. Be3 {[%clk 0:02:45.6]} 12... b6
{[%clk 0:02:58.8]} 13. Qd2 {[%clk 0:02:43.3]} 13... f5 {[%clk 0:02:58.7]} 14.
Bxh6 {[%clk 0:02:41.8]} 14... f4 {[%clk 0:02:58.8]} 15. Bxg7 {[%clk 0:02:40.4]}
15... Kxg7 {[%clk 0:02:59.7]} 16. Nh2 {[%clk 0:02:36.3]} 16... f3 {[%clk
0:02:48.4]} 17. Nxf3 {[%clk 0:02:17]} 17... Rxf3 {[%clk 0:02:47.8]} 18. gxf3
{[%clk 0:02:17.1]} 18... Ndf6 {[%clk 0:02:32.6]} 19. f4 {[%clk 0:02:13.6]} 19...
Bxh3 {[%clk 0:02:11.3]} 20. fxe5 {[%clk 0:02:10.2]} 20... dxe5 {[%clk
0:02:01.4]} 21. f4 {[%clk 0:02:05.1]} 21... Bxf1 {[%clk 0:01:43.6]} 22. Rxf1
{[%clk 0:02:04.3]} 22... Ng4 {[%clk 0:01:34.8]} 23. Be2 {[%clk 0:01:47.2]} 23...
Qh4 {[%clk 0:01:31.8]} 24. Bxg4 {[%clk 0:01:45.2]} 24... Qxg4+ {[%clk 0:01:32]}
25. Qg2 {[%clk 0:01:44.5]} 25... Qh4 {[%clk 0:01:16.1]} 26. Ne2 {[%clk
0:01:24.2]} 26... Re8 {[%clk 0:00:37.9]} 27. Ng3 {[%clk 0:01:11.8]} 27... Kh8
{[%clk 0:00:32.7]} 28. f5 {[%clk 0:00:57.4]} 28... Ng5 {[%clk 0:00:30.6]} 29.
Qh2 {[%clk 0:00:53]} 29... Nh3+ {[%clk 0:00:28.4]} 30. Kg2 {[%clk 0:00:50]}
30... Nf4+ {[%clk 0:00:28.7]} 31. Kh1 {[%clk 0:00:48.1]} 31... g5 {[%clk
0:00:23.7]} 32. bxc5 {[%clk 0:00:36.5]} 32... bxc5 {[%clk 0:00:20.3]} 33. f6
{[%clk 0:00:35.7]} 33... Rf8 {[%clk 0:00:19.6]} 34. Nf5 {[%clk 0:00:23.4]} 34...
Qxh2+ {[%clk 0:00:17.3]} 35. Kxh2 {[%clk 0:00:23.6]} 35... Rxf6 {[%clk
0:00:17.9]} 36. Kg3 {[%clk 0:00:19.8]} 36... Ra6 {[%clk 0:00:17.1]} 37. Kg4
{[%clk 0:00:19.3]} 37... Rxa3 {[%clk 0:00:16.7]} 38. Kxg5 {[%clk 0:00:18.8]}
38... Kg8 {[%clk 0:00:15.7]} 39. Kf6 {[%clk 0:00:17.7]} 39... Ra6+ {[%clk
0:00:15.9]} 40. Ke7 {[%clk 0:00:15.8]} 40... Ng6+ {[%clk 0:00:15.6]} 41. Kd7
{[%clk 0:00:15.5]} 41... Ra4 {[%clk 0:00:15.5]} 42. Rg1 {[%clk 0:00:14.4]} 42...
Kh7 {[%clk 0:00:15.7]} 43. Rh1+ {[%clk 0:00:14.3]} 43... Kg8 {[%clk 0:00:16.2]}
44. Ne7+ {[%clk 0:00:13.1]} 44... Nxe7 {[%clk 0:00:16]} 45. Kxe7 {[%clk
0:00:13.4]} 45... Rxc4 {[%clk 0:00:15.8]} 46. d6 {[%clk 0:00:12.6]} 46... Rxe4
{[%clk 0:00:14.2]} 47. Rg1+ {[%clk 0:00:12.8]} 47... Kh7 {[%clk 0:00:13.9]} 48.
d7 {[%clk 0:00:13]} 48... Rd4 {[%clk 0:00:14.2]} 49. d8=Q {[%clk 0:00:12.6]}
49... Rxd8 {[%clk 0:00:14.3]} 50. Kxd8 {[%clk 0:00:12.8]} 50... c4 {[%clk
0:00:14.8]} 51. Ke7 {[%clk 0:00:12.5]} 51... a5 {[%clk 0:00:11.3]} 52. Ke6
{[%clk 0:00:12.6]} 52... c3 {[%clk 0:00:10.9]} 53. Kxe5 {[%clk 0:00:12.8]} 53...
a4 {[%clk 0:00:11.2]} 54. Kd4 {[%clk 0:00:13]} 54... a3 {[%clk 0:00:11.8]} 55.
Kxc3 {[%clk 0:00:13.2]} 1-0

[Event "*** SCC Grand Prix: Titled Tuesday Blitz"]
[Site "Chess.com"]
[Date "2020.06.09"]
[Round "3"]
[White "Kilpkonn"]
[Black "ShahMatKanal"]
[Result "0-1"]
[WhiteElo "2032"]
[BlackElo "2478"]
[TimeControl "180+1"]
[EndTime "9:29:38 PDT"]
[Termination "ShahMatKanal won on time"]

1. e4 {[%clk 0:03:00.9]} 1... c6 {[%clk 0:02:58]} 2. d4 {[%clk 0:02:59.2]} 2...
d5 {[%clk 0:02:57.7]} 3. f3 {[%clk 0:02:58.8]} 3... g6 {[%clk 0:02:41.2]} 4. c4
{[%clk 0:02:47.5]} 4... Bg7 {[%clk 0:02:39.4]} 5. Be3 {[%clk 0:02:46.2]} 5...
Nf6 {[%clk 0:02:20.2]} 6. Nc3 {[%clk 0:02:44]} 6... O-O {[%clk 0:02:17.9]} 7. e5
{[%clk 0:02:39.8]} 7... Ne8 {[%clk 0:02:11.8]} 8. Bd3 {[%clk 0:02:33.6]} 8...
dxc4 {[%clk 0:02:02.3]} 9. Bxc4 {[%clk 0:02:32.5]} 9... Nc7 {[%clk 0:02:02.4]}
10. Nge2 {[%clk 0:02:28.9]} 10... Be6 {[%clk 0:01:58.5]} 11. Bxe6 {[%clk
0:02:12.9]} 11... Nxe6 {[%clk 0:01:58.4]} 12. Qb3 {[%clk 0:02:12.4]} 12... Qd7
{[%clk 0:01:42.3]} 13. O-O {[%clk 0:02:09.8]} 13... b6 {[%clk 0:01:22.5]} 14.
Rad1 {[%clk 0:02:04.1]} 14... Qb7 {[%clk 0:01:10.4]} 15. f4 {[%clk 0:02:02.8]}
15... Na6 {[%clk 0:01:01.8]} 16. f5 {[%clk 0:02:01.3]} 16... gxf5 {[%clk
0:01:00.1]} 17. Rxf5 {[%clk 0:01:58.9]} 17... Nac7 {[%clk 0:01:00.6]} 18. Rdf1
{[%clk 0:01:49.4]} 18... Nd5 {[%clk 0:00:56.1]} 19. Nxd5 {[%clk 0:01:23.5]}
19... cxd5 {[%clk 0:00:57]} 20. Bc1 {[%clk 0:01:20.5]} 20... Qa6 {[%clk
0:00:42.8]} 21. Qf3 {[%clk 0:00:59.1]} 21... Kh8 {[%clk 0:00:30.5]} 22. Rxf7
{[%clk 0:00:51.7]} 22... Rxf7 {[%clk 0:00:30.6]} 23. Qxf7 {[%clk 0:00:48.1]}
23... Rf8 {[%clk 0:00:20.4]} 24. Qxe6 {[%clk 0:00:44.1]} 24... Qxe2 {[%clk
0:00:20.8]} 25. Rxf8+ {[%clk 0:00:22.5]} 25... Bxf8 {[%clk 0:00:20.7]} 26. Qf5
{[%clk 0:00:22.4]} 26... Qe1+ {[%clk 0:00:04.6]} 27. Qf1 {[%clk 0:00:21.2]}
27... Qxf1+ {[%clk 0:00:05.2]} 28. Kxf1 {[%clk 0:00:20.7]} 28... e6 {[%clk
0:00:05.8]} 29. Ke2 {[%clk 0:00:19.9]} 29... Kg7 {[%clk 0:00:06]} 30. Kf3 {[%clk
0:00:19.5]} 30... Kg6 {[%clk 0:00:06.4]} 31. g4 {[%clk 0:00:17.7]} 31... h5
{[%clk 0:00:05.7]} 32. gxh5+ {[%clk 0:00:15.4]} 32... Kxh5 {[%clk 0:00:06.6]}
33. b3 {[%clk 0:00:12.7]} 33... Bb4 {[%clk 0:00:06.3]} 34. Be3 {[%clk
0:00:07.4]} 34... Kh4 {[%clk 0:00:06.6]} 35. Kg2 {[%clk 0:00:06.4]} 35... Bc3
{[%clk 0:00:06.1]} 36. Bf2+ {[%clk 0:00:05]} 36... Kg4 {[%clk 0:00:06]} 37. h3+
{[%clk 0:00:04.1]} 37... Kf4 {[%clk 0:00:06.4]} 38. h4 {[%clk 0:00:03.8]} 38...
Kg4 {[%clk 0:00:06.7]} 39. Kh2 {[%clk 0:00:02.9]} 39... Bb2 {[%clk 0:00:06.6]}
40. Kg2 {[%clk 0:00:02.9]} 40... Bc3 {[%clk 0:00:06.5]} 41. Kh2 {[%clk
0:00:03.3]} 41... Bb2 {[%clk 0:00:06.4]} 42. Kg2 {[%clk 0:00:03.8]} 42... Bc1
{[%clk 0:00:06.2]} 43. Kh2 {[%clk 0:00:04.5]} 43... Ba3 {[%clk 0:00:06.3]} 44.
Kg2 {[%clk 0:00:05.1]} 44... Be7 {[%clk 0:00:06.8]} 45. Kh2 {[%clk 0:00:04]}
45... Bxh4 {[%clk 0:00:07]} 46. Bxh4 {[%clk 0:00:03.3]} 46... Kxh4 {[%clk
0:00:07.2]} 47. Kg2 {[%clk 0:00:03.8]} 47... Kg4 {[%clk 0:00:07.8]} 48. Kf2
{[%clk 0:00:03.6]} 48... Kf4 {[%clk 0:00:08.5]} 49. Ke2 {[%clk 0:00:02.5]} 49...
Ke4 {[%clk 0:00:09.4]} 50. Kd2 {[%clk 0:00:01.7]} 50... Kxd4 {[%clk 0:00:10.3]}
0-1

[Event "*** SCC Grand Prix: Titled Tuesday Blitz"]
[Site "Chess.com"]
[Date "2020.06.09"]
[Round "3"]
[White "Meri-Arabidze"]
[Black "Shtembuliak"]
[Result "0-1"]
[WhiteElo "2644"]
[BlackElo "2860"]
[TimeControl "180+1"]
[EndTime "9:29:43 PDT"]
[Termination "Shtembuliak won by resignation"]

1. d4 {[%clk 0:03:00.9]} 1... g6 {[%clk 0:03:00.3]} 2. c4 {[%clk 0:02:59.8]}
2... Bg7 {[%clk 0:03:00.7]} 3. Nf3 {[%clk 0:03:00.2]} 3... d6 {[%clk 0:03:01.2]}
4. g3 {[%clk 0:03:00.4]} 4... Nf6 {[%clk 0:03:01]} 5. Bg2 {[%clk 0:03:00.7]}
5... O-O {[%clk 0:03:01.9]} 6. O-O {[%clk 0:03:00.8]} 6... c6 {[%clk 0:03:02.2]}
7. Nc3 {[%clk 0:03:00.7]} 7... Bf5 {[%clk 0:03:02.4]} 8. Ne1 {[%clk 0:03:00.2]}
8... e5 {[%clk 0:03:02.1]} 9. d5 {[%clk 0:02:57.3]} 9... cxd5 {[%clk 0:03:02.2]}
10. cxd5 {[%clk 0:02:57.2]} 10... a5 {[%clk 0:03:02]} 11. e4 {[%clk 0:02:56.3]}
11... Bd7 {[%clk 0:03:00.2]} 12. Nd3 {[%clk 0:02:53.6]} 12... b5 {[%clk
0:03:00.1]} 13. a3 {[%clk 0:02:53.1]} 13... Na6 {[%clk 0:03:00]} 14. Be3 {[%clk
0:02:39.9]} 14... Qb8 {[%clk 0:02:57]} 15. b4 {[%clk 0:02:29.8]} 15... axb4
{[%clk 0:02:52.2]} 16. axb4 {[%clk 0:02:30.7]} 16... Ng4 {[%clk 0:02:50.9]} 17.
Bd2 {[%clk 0:02:28.2]} 17... f5 {[%clk 0:02:51.4]} 18. h3 {[%clk 0:02:00.1]}
18... Nf6 {[%clk 0:02:50.8]} 19. Qb3 {[%clk 0:01:59.8]} 19... Kh8 {[%clk
0:02:48.3]} 20. Rae1 {[%clk 0:01:47.7]} 20... Qc7 {[%clk 0:02:20.9]} 21. f4
{[%clk 0:01:43.7]} 21... Nxe4 {[%clk 0:02:10.9]} 22. Nxe4 {[%clk 0:01:35.6]}
22... fxe4 {[%clk 0:02:11.2]} 23. Rxe4 {[%clk 0:01:33.9]} 23... Bf5 {[%clk
0:02:11.5]} 24. Ree1 {[%clk 0:01:20]} 24... Qc4 {[%clk 0:02:11.6]} 25. Nc1
{[%clk 0:01:14.1]} 25... Bc2 {[%clk 0:01:56.6]} 26. Qxc4 {[%clk 0:00:56.7]}
26... bxc4 {[%clk 0:01:57.5]} 27. Ne2 {[%clk 0:00:34]} 27... Bd3 {[%clk
0:01:35.9]} 28. fxe5 {[%clk 0:00:30.5]} 28... Bxe5 {[%clk 0:01:36.8]} 29. Rxf8+
{[%clk 0:00:29.8]} 29... Rxf8 {[%clk 0:01:37.7]} 30. Nf4 {[%clk 0:00:27.3]}
30... Bf5 {[%clk 0:01:06.1]} 31. Bf1 {[%clk 0:00:22.9]} 31... c3 {[%clk
0:00:58.8]} 32. Bc1 {[%clk 0:00:13]} 32... Nxb4 {[%clk 0:00:57.2]} 33. Ba3
{[%clk 0:00:13.3]} 33... Nc2 {[%clk 0:00:52]} 34. Rxe5 {[%clk 0:00:12.8]} 34...
Nxa3 {[%clk 0:00:52.3]} 35. Re7 {[%clk 0:00:10.8]} 35... c2 {[%clk 0:00:50.9]}
36. Rc7 {[%clk 0:00:10.6]} 36... Rc8 {[%clk 0:00:50.9]} 37. Rxc8+ {[%clk
0:00:10.7]} 37... Bxc8 {[%clk 0:00:51.8]} 38. Nd3 {[%clk 0:00:09.5]} 38... Bf5
{[%clk 0:00:38.6]} 39. Nc1 {[%clk 0:00:09.3]} 39... Kg7 {[%clk 0:00:24.4]} 40.
Kf2 {[%clk 0:00:10]} 40... Be4 {[%clk 0:00:24.5]} 41. Ke3 {[%clk 0:00:10.6]}
41... Bxd5 {[%clk 0:00:23.9]} 42. Kd4 {[%clk 0:00:10.9]} 42... Be6 {[%clk
0:00:20.5]} 43. h4 {[%clk 0:00:09.5]} 43... Bf5 {[%clk 0:00:20.2]} 44. Kc3
{[%clk 0:00:07.1]} 44... Kf6 {[%clk 0:00:19]} 45. Kb2 {[%clk 0:00:05.9]} 45...
Nb1 {[%clk 0:00:18.4]} 46. Nd3 {[%clk 0:00:02.2]} 46... Nd2 {[%clk 0:00:16.4]}
47. Be2 {[%clk 0:00:02]} 47... Ne4 {[%clk 0:00:16.3]} 48. Kxc2 {[%clk
0:00:01.9]} 48... Nxg3 {[%clk 0:00:16.4]} 49. Bf3 {[%clk 0:00:02.4]} 49... h5
{[%clk 0:00:13.3]} 50. Kc3 {[%clk 0:00:03]} 50... Bxd3 {[%clk 0:00:13.6]} 51.
Kxd3 {[%clk 0:00:03.1]} 51... Nf5 {[%clk 0:00:14.3]} 52. Kc4 {[%clk 0:00:01.9]}
52... Nxh4 {[%clk 0:00:14.8]} 53. Kd5 {[%clk 0:00:02.8]} 53... Nf5 {[%clk
0:00:15.2]} 54. Be4 {[%clk 0:00:02.4]} 54... g5 {[%clk 0:00:15]} 55. Bg2 {[%clk
0:00:01.5]} 55... g4 {[%clk 0:00:15.2]} 0-1

[Event "*** SCC Grand Prix: Titled Tuesday Blitz"]
[Site "Chess.com"]
[Date "2020.06.09"]
[Round "3"]
[White "Gajuchess"]
[Black "bulletteemo"]
[Result "1-0"]
[WhiteElo "2790"]
[BlackElo "2537"]
[TimeControl "180+1"]
[EndTime "9:29:43 PDT"]
[Termination "Gajuchess won on time"]

1. d4 {[%clk 0:03:00.9]} 1... Nf6 {[%clk 0:02:59.4]} 2. Nf3 {[%clk 0:02:59.7]}
2... g6 {[%clk 0:02:58.7]} 3. c3 {[%clk 0:03:00.2]} 3... Bg7 {[%clk 0:02:58.9]}
4. Bg5 {[%clk 0:03:00.9]} 4... O-O {[%clk 0:02:59.8]} 5. Nbd2 {[%clk 0:03:00.7]}
5... c5 {[%clk 0:02:59.3]} 6. dxc5 {[%clk 0:02:58.3]} 6... a5 {[%clk 0:02:57.1]}
7. e3 {[%clk 0:02:56.4]} 7... Na6 {[%clk 0:02:53.9]} 8. Bxf6 {[%clk 0:02:52.1]}
8... Bxf6 {[%clk 0:02:53.5]} 9. Ne4 {[%clk 0:02:52.6]} 9... Bg7 {[%clk
0:02:53.7]} 10. Bxa6 {[%clk 0:02:52.1]} 10... bxa6 {[%clk 0:02:46.4]} 11. O-O
{[%clk 0:02:53]} 11... Bb7 {[%clk 0:02:45.8]} 12. Qc2 {[%clk 0:02:29.8]} 12...
Qc7 {[%clk 0:02:39.3]} 13. Rfd1 {[%clk 0:02:26.2]} 13... Qc6 {[%clk 0:02:33.5]}
14. Ng3 {[%clk 0:02:12.9]} 14... Rfd8 {[%clk 0:02:31.2]} 15. Qb3 {[%clk
0:01:39.9]} 15... Rab8 {[%clk 0:02:16]} 16. Qa3 {[%clk 0:01:39.9]} 16... a4
{[%clk 0:02:12.8]} 17. Rd2 {[%clk 0:01:30.3]} 17... h5 {[%clk 0:01:34.7]} 18. h3
{[%clk 0:01:27.8]} 18... Bf6 {[%clk 0:01:31.2]} 19. Rad1 {[%clk 0:01:15.8]}
19... h4 {[%clk 0:01:20]} 20. Ne2 {[%clk 0:01:13.8]} 20... Rbc8 {[%clk
0:01:09.5]} 21. Ned4 {[%clk 0:01:03.1]} 21... Qxc5 {[%clk 0:01:07.1]} 22. Qxa4
{[%clk 0:01:03.6]} 22... d6 {[%clk 0:00:56.8]} 23. Nb3 {[%clk 0:01:03.4]} 23...
Qh5 {[%clk 0:00:53.9]} 24. Qg4 {[%clk 0:01:02.7]} 24... Qxg4 {[%clk 0:00:46.9]}
25. hxg4 {[%clk 0:01:03.6]} 25... Rc4 {[%clk 0:00:47.1]} 26. Na5 {[%clk
0:00:58.7]} 26... Bxf3 {[%clk 0:00:44.9]} 27. gxf3 {[%clk 0:00:56.4]} 27... Ra4
{[%clk 0:00:42.8]} 28. Nc6 {[%clk 0:00:56.5]} 28... Rc8 {[%clk 0:00:40.3]} 29.
Nb4 {[%clk 0:00:54.7]} 29... a5 {[%clk 0:00:24.7]} 30. Nd5 {[%clk 0:00:33.7]}
30... Rxa2 {[%clk 0:00:23.8]} 31. Nxf6+ {[%clk 0:00:34.2]} 31... exf6 {[%clk
0:00:24.2]} 32. Rxd6 {[%clk 0:00:34.8]} 32... Rxb2 {[%clk 0:00:24]} 33. Rxf6
{[%clk 0:00:35.1]} 33... Rxc3 {[%clk 0:00:19.8]} 34. g5 {[%clk 0:00:31.5]} 34...
Rcc2 {[%clk 0:00:18.4]} 35. Rd8+ {[%clk 0:00:30.9]} 35... Kg7 {[%clk 0:00:17.9]}
36. Rd7 {[%clk 0:00:31.8]} 36... Rc1+ {[%clk 0:00:12.1]} 37. Kg2 {[%clk
0:00:30.6]} 37... Rc8 {[%clk 0:00:05.4]} 38. Rfxf7+ {[%clk 0:00:29.5]} 38... Kg8
{[%clk 0:00:05.9]} 39. Rg7+ {[%clk 0:00:29.7]} 39... Kf8 {[%clk 0:00:06.2]} 40.
Rdf7+ {[%clk 0:00:29.6]} 40... Ke8 {[%clk 0:00:06.5]} 41. Ra7 {[%clk 0:00:28.4]}
41... Kf8 {[%clk 0:00:06.5]} 42. Rh7 {[%clk 0:00:28.5]} 42... Kg8 {[%clk
0:00:05.8]} 43. Rxh4 {[%clk 0:00:22.3]} 43... Rb5 {[%clk 0:00:05.8]} 44. f4
{[%clk 0:00:19]} 44... Rd5 {[%clk 0:00:05.1]} 45. Rhh7 {[%clk 0:00:18.5]} 45...
Rd6 {[%clk 0:00:04.3]} 46. Rhg7+ {[%clk 0:00:17.7]} 46... Kf8 {[%clk 0:00:04.5]}
47. Raf7+ {[%clk 0:00:18]} 47... Ke8 {[%clk 0:00:04.8]} 48. Ra7 {[%clk
0:00:18.9]} 48... Kf8 {[%clk 0:00:04.8]} 49. Rh7 {[%clk 0:00:19.3]} 49... Kg8
{[%clk 0:00:05.2]} 50. Rhb7 {[%clk 0:00:19.6]} 50... Rd5 {[%clk 0:00:03.8]} 51.
Rb6 {[%clk 0:00:19.6]} 51... Rd2 {[%clk 0:00:01.1]} 52. Rxg6+ {[%clk 0:00:19.3]}
52... Kf8 {[%clk 0:00:02]} 53. Rf6+ {[%clk 0:00:19.3]} 53... Ke8 {[%clk
0:00:02.3]} 54. Kg3 {[%clk 0:00:17.2]} 54... Rcc2 {[%clk 0:00:02.3]} 55. Rh6
{[%clk 0:00:16.9]} 1-0

[Event "*** SCC Grand Prix: Titled Tuesday Blitz"]
[Site "Chess.com"]
[Date "2020.06.09"]
[Round "3"]
[White "BIG_Pirate"]
[Black "BaMBoMaTTo"]
[Result "0-1"]
[WhiteElo "2421"]
[BlackElo "2634"]
[TimeControl "180+1"]
[EndTime "9:29:43 PDT"]
[Termination "BaMBoMaTTo won on time"]

1. Nf3 {[%clk 0:03:00.9]} 1... Nf6 {[%clk 0:02:59.8]} 2. c4 {[%clk 0:03:00.3]}
2... g6 {[%clk 0:03:00.3]} 3. Nc3 {[%clk 0:03:00.2]} 3... d5 {[%clk 0:03:00.8]}
4. cxd5 {[%clk 0:02:59.4]} 4... Nxd5 {[%clk 0:03:01.7]} 5. Qa4+ {[%clk
0:02:54.5]} 5... Bd7 {[%clk 0:02:54.8]} 6. Qd4 {[%clk 0:02:43.3]} 6... Nf6
{[%clk 0:02:54.5]} 7. g3 {[%clk 0:02:19.4]} 7... Nc6 {[%clk 0:02:51.9]} 8. Qc4
{[%clk 0:02:12.5]} 8... Bg7 {[%clk 0:02:51.6]} 9. Bg2 {[%clk 0:02:11.9]} 9...
O-O {[%clk 0:02:50.8]} 10. O-O {[%clk 0:02:11.7]} 10... e5 {[%clk 0:02:41]} 11.
d3 {[%clk 0:02:06.4]} 11... h6 {[%clk 0:02:41.1]} 12. Be3 {[%clk 0:01:42]} 12...
Be6 {[%clk 0:02:36.4]} 13. Qb5 {[%clk 0:01:36.8]} 13... Nd5 {[%clk 0:02:35.1]}
14. Nxd5 {[%clk 0:01:26.8]} 14... Bxd5 {[%clk 0:02:36]} 15. Rfc1 {[%clk
0:01:15.3]} 15... a6 {[%clk 0:02:09.3]} 16. Qa4 {[%clk 0:01:06.4]} 16... Re8
{[%clk 0:02:09.3]} 17. Nd2 {[%clk 0:00:30.1]} 17... Bxg2 {[%clk 0:02:09.1]} 18.
Kxg2 {[%clk 0:00:31]} 18... Nd4 {[%clk 0:02:07.6]} 19. Qd1 {[%clk 0:00:26.6]}
19... f5 {[%clk 0:02:04.5]} 20. Bxd4 {[%clk 0:00:22.9]} 20... exd4 {[%clk
0:02:05.4]} 21. Nf3 {[%clk 0:00:21.8]} 21... Kh7 {[%clk 0:01:56.3]} 22. Rc2
{[%clk 0:00:20.8]} 22... c6 {[%clk 0:01:50.6]} 23. Rac1 {[%clk 0:00:21.7]} 23...
Re6 {[%clk 0:01:41.7]} 24. b4 {[%clk 0:00:21.7]} 24... Qe7 {[%clk 0:01:40.3]}
25. a3 {[%clk 0:00:17.5]} 25... a5 {[%clk 0:01:40.3]} 26. Rb1 {[%clk 0:00:12.7]}
26... axb4 {[%clk 0:01:40.2]} 27. axb4 {[%clk 0:00:13.6]} 27... Ra3 {[%clk
0:01:30.6]} 28. b5 {[%clk 0:00:13.1]} 28... Rc3 {[%clk 0:01:31.2]} 29. bxc6
{[%clk 0:00:12.5]} 29... Rexc6 {[%clk 0:00:52.8]} 30. Rcb2 {[%clk 0:00:12.2]}
30... Rc7 {[%clk 0:00:51.7]} 31. Nd2 {[%clk 0:00:11.1]} 31... R3c6 {[%clk
0:00:43.4]} 32. Nc4 {[%clk 0:00:10.8]} 32... Re6 {[%clk 0:00:44]} 33. Kf1 {[%clk
0:00:08.4]} 33... h5 {[%clk 0:00:44.2]} 34. Rb6 {[%clk 0:00:08.8]} 34... h4
{[%clk 0:00:42.6]} 35. Rxe6 {[%clk 0:00:08.8]} 35... Qxe6 {[%clk 0:00:43.5]} 36.
Rb6 {[%clk 0:00:09.1]} 36... Qd5 {[%clk 0:00:43.7]} 37. Kg1 {[%clk 0:00:08]}
37... h3 {[%clk 0:00:41]} 38. f3 {[%clk 0:00:08.2]} 38... g5 {[%clk 0:00:41.6]}
39. Qb3 {[%clk 0:00:06.6]} 39... Re7 {[%clk 0:00:37.5]} 40. Kf2 {[%clk
0:00:05.8]} 40... g4 {[%clk 0:00:32.4]} 41. Qb5 {[%clk 0:00:05.9]} 41... Qf7
{[%clk 0:00:27.6]} 42. f4 {[%clk 0:00:05.5]} 42... Kh8 {[%clk 0:00:13.7]} 43.
Nd6 {[%clk 0:00:05.4]} 43... Qe6 {[%clk 0:00:13.1]} 44. Ne4 {[%clk 0:00:02.5]}
44... Qc8 {[%clk 0:00:11.2]} 45. Nd6 {[%clk 0:00:01.7]} 45... Qc2 {[%clk
0:00:10.8]} 0-1

[Event "*** SCC Grand Prix: Titled Tuesday Blitz"]
[Site "Chess.com"]
[Date "2020.06.09"]
[Round "3"]
[White "Chess2019Player"]
[Black "GuerrieroFromLevant"]
[Result "1-0"]
[WhiteElo "2172"]
[BlackElo "2346"]
[TimeControl "180+1"]
[EndTime "9:29:43 PDT"]
[Termination "Chess2019Player won by resignation"]

1. e4 {[%clk 0:03:00.9]} 1... e6 {[%clk 0:02:59.9]} 2. d4 {[%clk 0:02:59.2]}
2... d5 {[%clk 0:03:00.5]} 3. Nc3 {[%clk 0:02:57.8]} 3... Nf6 {[%clk 0:03:01]}
4. exd5 {[%clk 0:02:55.8]} 4... exd5 {[%clk 0:02:59.4]} 5. Bd3 {[%clk
0:02:55.9]} 5... c5 {[%clk 0:02:53.9]} 6. dxc5 {[%clk 0:02:54.3]} 6... Bxc5
{[%clk 0:02:54.8]} 7. Nf3 {[%clk 0:02:41.7]} 7... O-O {[%clk 0:02:54]} 8. O-O
{[%clk 0:02:40.4]} 8... h6 {[%clk 0:02:52.8]} 9. h3 {[%clk 0:02:27]} 9... Nc6
{[%clk 0:02:49.9]} 10. Ne2 {[%clk 0:02:04.5]} 10... Re8 {[%clk 0:02:46.3]} 11.
c3 {[%clk 0:02:02.7]} 11... Ne4 {[%clk 0:02:26.7]} 12. Ned4 {[%clk 0:00:55.9]}
12... Qf6 {[%clk 0:02:18.1]} 13. Be3 {[%clk 0:00:53.1]} 13... Bb6 {[%clk
0:02:01]} 14. Re1 {[%clk 0:00:40.2]} 14... Bd7 {[%clk 0:01:33.5]} 15. Qc2 {[%clk
0:00:39.5]} 15... Rac8 {[%clk 0:01:28.5]} 16. a3 {[%clk 0:00:38]} 16... Qg6
{[%clk 0:01:17.3]} 17. Kh1 {[%clk 0:00:22.7]} 17... Qh5 {[%clk 0:01:09.9]} 18.
Nxc6 {[%clk 0:00:10.4]} 18... Bxc6 {[%clk 0:00:24.1]} 19. Bxb6 {[%clk
0:00:09.8]} 19... axb6 {[%clk 0:00:23.7]} 20. Nd4 {[%clk 0:00:09.4]} 20... Ng5
{[%clk 0:00:20.2]} 21. Be2 {[%clk 0:00:06.5]} 21... Qg6 {[%clk 0:00:15.8]} 22.
Bg4 {[%clk 0:00:07]} 22... Qxc2 {[%clk 0:00:14.7]} 23. Nxc2 {[%clk 0:00:07.9]}
23... Rcd8 {[%clk 0:00:15]} 24. Nd4 {[%clk 0:00:07.5]} 24... Ne4 {[%clk
0:00:14.8]} 25. Kg1 {[%clk 0:00:06.9]} 25... Nd2 {[%clk 0:00:14.4]} 26. Rad1
{[%clk 0:00:05.9]} 26... Nc4 {[%clk 0:00:13.9]} 27. b3 {[%clk 0:00:04.1]} 27...
Ne5 {[%clk 0:00:13.9]} 28. Be2 {[%clk 0:00:03.4]} 28... Bd7 {[%clk 0:00:12.7]}
29. Bf1 {[%clk 0:00:03.1]} 29... Bc8 {[%clk 0:00:12.8]} 30. b4 {[%clk
0:00:01.9]} 30... g5 {[%clk 0:00:11.4]} 31. a4 {[%clk 0:00:02.4]} 31... f5
{[%clk 0:00:10.8]} 32. Nb5 {[%clk 0:00:02.9]} 32... Nc4 {[%clk 0:00:10.1]} 33.
Bxc4 {[%clk 0:00:02.1]} 33... dxc4 {[%clk 0:00:10.1]} 34. Rxe8+ {[%clk 0:00:03]}
34... Rxe8 {[%clk 0:00:10.2]} 35. Rd4 {[%clk 0:00:03.9]} 35... Be6 {[%clk
0:00:09.9]} 36. Nc7 {[%clk 0:00:04.4]} 36... Re7 {[%clk 0:00:09]} 37. Nxe6
{[%clk 0:00:05.1]} 37... Rxe6 {[%clk 0:00:09.9]} 38. Rxc4 {[%clk 0:00:05.9]}
38... Kf7 {[%clk 0:00:10.2]} 39. Rc7+ {[%clk 0:00:06.3]} 39... Re7 {[%clk
0:00:09.7]} 40. Rxe7+ {[%clk 0:00:06.7]} 40... Kxe7 {[%clk 0:00:10.6]} 41. Kf1
{[%clk 0:00:07.4]} 41... Kd6 {[%clk 0:00:11.5]} 42. Ke2 {[%clk 0:00:08.2]} 42...
Kd5 {[%clk 0:00:12.4]} 43. Kd3 {[%clk 0:00:09.1]} 43... f4 {[%clk 0:00:13.1]}
44. c4+ {[%clk 0:00:09.7]} 44... Ke5 {[%clk 0:00:13.3]} 45. f3 {[%clk
0:00:10.6]} 45... h5 {[%clk 0:00:13.5]} 46. a5 {[%clk 0:00:10.8]} 46... bxa5
{[%clk 0:00:13.7]} 47. bxa5 {[%clk 0:00:11.7]} 47... Kd6 {[%clk 0:00:14.3]} 48.
Kd4 {[%clk 0:00:11.9]} 48... Kc6 {[%clk 0:00:15.2]} 49. c5 {[%clk 0:00:09.6]}
49... Kb5 {[%clk 0:00:15.7]} 50. Kd5 {[%clk 0:00:10.2]} 50... Kxa5 {[%clk
0:00:16.2]} 51. c6 {[%clk 0:00:11.1]} 51... bxc6+ {[%clk 0:00:14.5]} 52. Kxc6
{[%clk 0:00:12]} 52... Kb4 {[%clk 0:00:15.2]} 53. Kd5 {[%clk 0:00:12.5]} 53...
Kc3 {[%clk 0:00:15.8]} 54. Ke5 {[%clk 0:00:13.4]} 54... Kd3 {[%clk 0:00:16.4]}
55. Kf5 {[%clk 0:00:14]} 55... Ke3 {[%clk 0:00:17.3]} 56. Kxg5 {[%clk
0:00:14.6]} 56... Kf2 {[%clk 0:00:18.2]} 57. Kxh5 {[%clk 0:00:13.5]} 57... Kxg2
{[%clk 0:00:19.1]} 58. Kg4 {[%clk 0:00:14.4]} 58... Kf2 {[%clk 0:00:18.8]} 59.
h4 {[%clk 0:00:15.3]} 59... Ke3 {[%clk 0:00:19.2]} 60. h5 {[%clk 0:00:16.2]}
60... Kd4 {[%clk 0:00:19.9]} 61. h6 {[%clk 0:00:17.1]} 61... Ke5 {[%clk
0:00:20.6]} 62. h7 {[%clk 0:00:18]} 62... Kf6 {[%clk 0:00:21.3]} 63. h8=Q+
{[%clk 0:00:18.4]} 63... Ke6 {[%clk 0:00:22.2]} 1-0